[Event "45th FIDE Womens Olympiad 2024"]
[Site "Budapest"]
[Date "2024.09.15"]
[Round "5.119"]
[White "De Rycke, Tyani"]
[Black "Nel, Hayley"]
[Result "1-0"]
[ECO "B17"]
[WhiteElo "2110"]
[BlackElo "1753"]
[Annotator "TA"]
[PlyCount "83"]
[EventDate "2024.09.05"]
[EventType "team-tourn"]
[EventCountry "HUN"]
[SourceTitle "playchess.com"]
[Source "ChessBase"]
[SourceQuality "1"]
[WhiteTeam "Belgium"]
[BlackTeam "South Africa"]
[WhiteTeamCountry "BEL"]
[BlackTeamCountry "RSA"]
[TimeControl "40/5400+30:1800+30"]

{[%evp 9,83,22,15,17,16,13,17,11,3,13,25,12,11,9,14,5,0,0,10,0,0,-16,0,0,0,-16,23,24,58,58,38,35,41,41,34,34,107,91,85,81,111,95,93,28,29,2,140,141,170,144,166,159,193,182,205,192,243,232,253,245,290,303,296,310,800,800,800,800,800,800,791,669,4802,4132,29998,29999]} 1. e4 c6 2. d4 d5 3. Nc3 dxe4 4. Nxe4 Nd7 5. Bd3 Ngf6 6. Nxf6+ Nxf6 7. Ne2 Bf5 8. O-O {The position is equal.} (8. Bxf5 $5 Qa5+ $8 9. c3 Qxf5 10. O-O $11) 8... Bxd3 9. Qxd3 g6 10. Bf4 Bg7 11. Rad1 O-O 12. c4 Qa5 13. Be5 b5 14. a3 Rfd8 15. Rc1 Nd7 {[%cal Bf6d7,Bd7b6,Bb6c4][%mdl 32]} 16. Bxg7 Kxg7 17. Qe4 {Prevents Ne5.} Nb6 18. cxb5 (18. Qxe7 $2 Re8 (18... bxc4 19. Rc2 $11) 19. Qb7 Rab8 (19... Rxe2 20. c5 $15) (19... bxc4 20. Nc3 $15) (19... Nxc4 20. Rc2 $15) 20. Qxc6 (20. Qc7 $2 Rbc8 $19) 20... Rxe2 $19) 18... cxb5 19. Qe5+ (19. Qxe7 $2 Re8 20. Qb7 (20. b4 $2 Qxa3 21. Qg5 Rxe2 $19) 20... Rxe2 $19) 19... Kg8 20. Nc3 (20. Qxe7 $2 Re8 21. Qg5 (21. b4 $2 Qxa3 22. Qg5 Rxe2 $19) 21... Rxe2 $19) 20... Nc4 {[%csl LRb2,LRe5]} 21. Qxe7 {Hoping for Ne4.} Rxd4 {[%cal Oa5d8]} 22. Qc5 $36 {[%csl LRb5,LRd4][%mdl 2048] White has the initiative.} Rdd8 (22... Qb6 $14 23. Qxb6 (23. Qxb5 Nxb2 24. Qxb6 axb6 $11) 23... Nxb6) 23. b4 ({Much weaker is} 23. Qxb5 $6 Qxb5 24. Nxb5 Nxb2 $11) ({Don't play} 23. Nxb5 $6 Nxb2 24. Qb4 Qxb4 25. axb4 Nd3 $11) 23... Qb6 {Threatens to win with ...Qxc5.} 24. Nxb5 Nd6 25. Nxd6 Rxd6 26. g3 (26. Rfe1 $16) 26... Rd3 $1 $11 27. a4 (27. Qxb6 {simplifies} axb6 28. Rfd1 Rdxa3 29. Kg2) 27... Qb7 {Against Qe7. White stays focused until the end.} (27... Rd4 $1 $11 {keeps the balance.}) 28. Rfd1 $16 Rxd1+ 29. Rxd1 {[%mdl 4096] Endgame. KQR-KQR} Rc8 30. Qd4 Qf3 31. Qd3 Qg4 {[#]} 32. Qd7 $1 Qc4 (32... Qxd7 $142 33. Rxd7 Rc4) 33. Rd4 (33. Qxa7 Qxb4 34. Qd7 Rb8 $16) 33... Qc1+ 34. Kg2 Qc3 35. b5 ({Worse is} 35. Qxa7 Qc6+ 36. Kh3 Qe6+ 37. Kg2 Qc6+ 38. Kh3 Qe6+ 39. Kg2 Qc6+ $11) 35... Qc7 36. a5 {[%cal Ba4a5,Ba5b6,Bb6b7][%mdl 32]} Qb8 {[#]} (36... Kg7 37. a6 Qb8) 37. b6 $1 $18 {[%mdl 512]} axb6 38. axb6 {Threatening mate with b7.} Kg7 39. Rf4 Rf8 40. b7 Qd8 {[#]} 41. Rxf7+ {[%mdl 512]} Kh6 (41... Rxf7 42. Qxd8) 42. Qh3+ {Weighted Error Value: White=0.08 (flawless) /Black=0.44.  Mistake:       	White=1     	Black=4      Inaccurate:     	White=1     	Black=3      OK:         	White=11    	Black=9      Best:        	White=1     	Black=1      Strong:       	---       	Black=1      Brilliant:      	White=1     	---} 1-0

[Event "45th FIDE Womens Olympiad 2024"]
[Site "Budapest"]
[Date "2024.09.15"]
[Round "5.120"]
[White "Strong, Davida"]
[Black "Musabayeva, Diana"]
[Result "0-1"]
[ECO "E35"]
[WhiteElo "1733"]
[BlackElo "1911"]
[Annotator "TA"]
[PlyCount "36"]
[EventDate "2024.09.05"]
[EventType "team-tourn"]
[EventCountry "HUN"]
[SourceTitle "playchess.com"]
[Source "ChessBase"]
[SourceQuality "1"]
[WhiteTeam "South Africa"]
[BlackTeam "Belgium"]
[WhiteTeamCountry "RSA"]
[BlackTeamCountry "BEL"]
[TimeControl "40/5400+30:1800+30"]

{[%evp 9,36,19,24,18,14,17,25,0,26,30,37,9,42,10,28,0,0,0,0,0,172,-64,-76,-341,-356,-1164,-1135,-1084,-1122]} 1. d4 Nf6 2. c4 e6 3. Nc3 Bb4 4. Qc2 d5 5. cxd5 exd5 6. Bf4 c6 7. e3 O-O 8. Bd3 {White has an edge.} Re8 (8... c5 $5) 9. Nf3 Nbd7 10. a3 Be7 11. Ng5 h6 (11... g6 {simplifies} 12. Nf3 Nf8 13. h3 Ne6) 12. Bh7+ (12. Nf3 $5) 12... Kf8 13. Nxf7 Kxf7 14. Qg6+ Ke6 $2 {[#]} (14... Kf8 $11 15. Bxh6 gxh6 16. Qxh6+ Kf7 17. Qg6+ Kf8 (17... Ke6 18. Qf5+ Kf7 19. Qg6+ Kf8 20. Qh6+ Kf7 21. Qg6+ $11) 18. Qh6+ Kf7 19. Qg6+ Ke6 20. Qf5+ Kf7 21. Qg6+) 15. Bg3 $2 (15. Qxg7 Nxh7 16. Qxh7 Nf6 $17) ({White must play} 15. e4 $1 $18 Bd6 16. e5 Nxe5 17. dxe5 (17. Bxe5 Kd7 $11) 17... Bxe5 18. Bxe5 Kxe5 19. O-O (19. Qxg7 Kd6+ 20. Kf1 Nxh7 $17)) 15... Bd6 $1 $15 (15... Rh8 16. Qf5+ Kf7 17. Bg6+ Kf8 18. Qe6 $16) 16. f4 $2 {[%mdl 8192]} (16. Bxd6 $17 {was worth a try.} Kxd6 17. Qg3+ Ke6 18. Bg6 (18. Qxg7 $2 {loses.} Re7 $19)) 16... Nf8 $1 $19 {[%csl LRg6,LRh7]} 17. f5+ (17. Qxg7 N8xh7 (17... N6xh7 18. f5+ Kxf5 19. Rf1+) 18. f5+ Kxf5 19. Bxd6) 17... Kd7 18. Qxg7+ Re7 {Weighted Error Value: White=1.11/Black=0.27 (precise) .  Loses game:     	White=1     	Black=1      Missed win:     	White=1     	---        Mistake:       	White=1     	---        Inaccurate:     	White=3     	Black=2      OK:         	White=2     	---        Best:        	---       	Black=3      Strong:       	---       	Black=1} 0-1

[Event "45th FIDE Womens Olympiad 2024"]
[Site "Budapest"]
[Date "2024.09.15"]
[Round "5.121"]
[White "Castillo Beitia, Ashley Alexandra"]
[Black "Martynkova, Olena"]
[Result "1/2-1/2"]
[ECO "A48"]
[WhiteElo "2071"]
[BlackElo "2176"]
[Annotator "TA"]
[PlyCount "60"]
[EventDate "2024.09.05"]
[EventType "team-tourn"]
[EventCountry "HUN"]
[SourceTitle "playchess.com"]
[Source "ChessBase"]
[SourceQuality "1"]
[WhiteTeam "Panama"]
[BlackTeam "Lithuania"]
[WhiteTeamCountry "PAN"]
[BlackTeamCountry "LTU"]
[TimeControl "40/5400+30:1800+30"]

{[%evp 11,60,0,22,-31,-11,-35,-12,-17,-10,-11,-16,-28,-33,-77,-74,-77,-85,-81,-61,-77,-27,-39,-40,-36,-43,-36,-23,-45,-46,-37,-14,-22,0,-15,-15,-22,-19,-18,-13,-18,0,-44,-38,-35,-30,-52,-52,-59,-63,-68,-54]} 1. d4 Nf6 2. Bf4 g6 3. e3 Bg7 4. Nf3 O-O 5. h3 d6 6. Be2 Nc6 {[%cal Oe7e5]} 7. c4 (7. Nc3 $11) 7... Ne4 $15 {Black wants to play ...e5.} 8. Nc3 (8. Nbd2 $5 Nxd2 9. Qxd2 $11) 8... f5 9. Bh2 {The position is equal.} e5 10. O-O exd4 11. exd4 Ng5 12. Nb5 {aiming for Nxg5.} Nxf3+ 13. Bxf3 {[#]} a6 $1 14. Bxc6 bxc6 15. Nc3 Rb8 (15... f4 $17 {[%cal Of4f3] ...f3! is the strong threat.} 16. f3 Qf6) 16. Qd2 $11 Qf6 17. Rad1 f4 {[#] White must now prevent ...f3.} 18. f3 g5 19. Kh1 Bf5 20. Bg1 Rfe8 21. Rfe1 Qf7 22. b3 Bg6 23. Bf2 h6 24. Kg1 Rbd8 25. Qc1 Qf5 26. Qd2 Qc2 27. Qxc2 Bxc2 {A strong pair of Bishops.} 28. Rc1 Bf5 {Black is slightly better.} 29. Red1 Kf7 30. Kf1 Rb8 {Weighted Error Value: White=0.11 (very precise) /Black=0.06 (flawless) .  Mistake:       	---       	Black=1      Inaccurate:     	White=2     	---        OK:         	White=11    	Black=10     Strong:       	---       	Black=1} 1/2-1/2

[Event "45th FIDE Womens Olympiad 2024"]
[Site "Budapest"]
[Date "2024.09.15"]
[Round "5.122"]
[White "Limontaite, Simona"]
[Black "Chung Hurtado, Yaleika"]
[Result "1-0"]
[ECO "D29"]
[WhiteElo "2177"]
[BlackElo "1832"]
[Annotator "TA"]
[PlyCount "99"]
[EventDate "2024.09.05"]
[EventType "team-tourn"]
[EventCountry "HUN"]
[SourceTitle "playchess.com"]
[Source "ChessBase"]
[SourceQuality "1"]
[WhiteTeam "Lithuania"]
[BlackTeam "Panama"]
[WhiteTeamCountry "LTU"]
[BlackTeamCountry "PAN"]
[TimeControl "40/5400+30:1800+30"]

{[%evp 26,99,0,0,54,56,116,30,42,25,17,21,18,18,79,79,77,77,96,64,73,77,64,47,79,79,85,85,125,101,119,108,120,111,132,105,122,124,156,164,160,168,165,158,136,115,108,94,166,172,232,244,205,223,264,222,304,287,302,288,306,250,673,675,640,629,624,604,6385,6477,5447,4797,6532,6211,29983,29984]} 1. d4 d5 2. c4 e6 3. Nc3 a6 4. e3 dxc4 5. Bxc4 b5 6. Bb3 Bb7 7. Nf3 Nf6 8. O-O c5 9. Qe2 Nbd7 10. Rd1 Qb8 11. d5 exd5 12. Nxd5 Nxd5 13. Bxd5 Bxd5 14. Rxd5 Nf6 (14... Be7 $11) 15. Rd1 $14 {e4 would now be deadly.} Be7 (15... Qb7 $14) 16. a4 ({Better is} 16. e4 $16) 16... O-O $11 {[%cal Bh8f8,Bf8d8,Bd8d3][%mdl 32] White has an edge.} 17. axb5 Qxb5 18. Qc2 Rfd8 19. Bd2 Qd3 (19... Nd5 $11 {keeps the balance.}) 20. Qxd3 $16 Rxd3 21. Ne5 Rd5 22. Nc6 Bf8 {[#] Strongly threatening ...Rc8.} 23. Be1 Rxd1 24. Rxd1 Rc8 25. Na5 Rb8 26. Nc4 Be7 27. f3 Rd8 28. Ra1 Ra8 29. e4 Ne8 30. Bg3 f6 31. Nb6 Ra7 32. Nc8 {White has more active pieces.} Rb7 33. Nxe7+ Rxe7 34. Rxa6 {[%mdl 4096] Endgame. KRB-KRN} Rb7 35. Ra2 Kf7 36. Kf1 g6 (36... Nc7 $16 {might work better.}) 37. Bf2 $18 c4 (37... Rc7 {was called for.} 38. Ke2 c4) 38. Ra7 Rxa7 39. Bxa7 {KB-KN} Nd6 40. Bd4 Nb5 {[#]} 41. Bc3 Ke6 42. Ke2 f5 43. Ke3 g5 $2 (43... fxe4 44. Kxe4 (44. fxe4 Kd6 $16) 44... Nd6+ 45. Kf4 Nc8) 44. exf5+ Kxf5 45. g4+ {[%cal Bg2g4,Bg4h5,Bh5h6][%mdl 32]} Ke6 46. Ke4 h5 47. gxh5 Nd6+ 48. Kd4 Nf5+ 49. Kxc4 {Intending Kc5 and mate.} Nh4 50. h6 {Weighted Error Value: White=0.11 (very precise) /Black=0.62.  Mistake:       	White=1     	Black=5      Inaccurate:     	White=1     	Black=3      OK:         	White=14    	Black=8      Best:        	White=3     	---} 1-0

[Event "45th FIDE Womens Olympiad 2024"]
[Site "Budapest"]
[Date "2024.09.15"]
[Round "5.123"]
[White "Vasquez Jaen, Lourdes Lorena"]
[Black "Simkunaite, Gabija"]
[Result "1/2-1/2"]
[ECO "C44"]
[WhiteElo "1821"]
[BlackElo "2005"]
[Annotator "TA"]
[PlyCount "92"]
[EventDate "2024.09.05"]
[EventType "team-tourn"]
[EventCountry "HUN"]
[SourceTitle "playchess.com"]
[Source "ChessBase"]
[SourceQuality "1"]
[WhiteTeam "Panama"]
[BlackTeam "Lithuania"]
[WhiteTeamCountry "PAN"]
[BlackTeamCountry "LTU"]
[TimeControl "40/5400+30:1800+30"]

{[%evp 9,92,11,25,8,31,39,49,41,66,70,55,64,57,58,66,40,56,72,66,65,62,44,47,20,58,19,21,-67,-67,-58,-54,-77,-47,-45,-38,-63,-60,-88,-35,-27,-24,-24,-24,-24,-5,-24,-24,-24,-24,-21,0,-14,0,-22,0,-22,-16,-31,-26,-31,0,-31,-20,-29,-8,-23,0,-30,0,-19,-10,-10,-12,-45,-45,-53,0,-18,-26,-48,-27,-27,0,0,0]} 1. e4 e5 2. Nf3 Nf6 3. d3 Nc6 4. g3 d6 5. Bg2 Bg4 6. c3 Qd7 7. h3 Bxf3 8. Qxf3 {White is slightly better.} Be7 9. Nd2 Rd8 10. Nc4 d5 11. exd5 Nxd5 12. O-O Nb6 13. Re1 Nxc4 14. dxc4 O-O 15. Be3 Qe6 16. Qe2 Kh8 17. Kh2 f5 {[#]} 18. Bd4 e4 $15 19. Rad1 Nxd4 20. Rxd4 {White is weak on the dark squares} Rxd4 21. cxd4 Bf6 22. d5 Qb6 23. f3 {[#]} Be5 (23... Qxb2 24. Qxb2 Bxb2 25. Rb1 $16) (23... f4 $1 $17 {...fxg3+ is the strong threat.} 24. fxe4 (24. gxf4 Bh4 $17) 24... fxg3+ (24... Qxb2 25. gxf4 Qc3 26. Rd1 $16) 25. Kh1 g6 (25... Bxb2 26. e5 $11) (25... Be5 26. Rf1 $17)) 24. fxe4 f4 ({Of course not} 24... Qxb2 $6 25. Qxb2 Bxb2 26. exf5 $16) 25. gxf4 Rxf4 {[%cal Rf4f1]} 26. Kh1 Qg6 (26... Qxb2 $2 {loses.} 27. Qxb2 Bxb2 28. e5 $18) 27. Rf1 Qg3 {[%cal Og3h2] ( -> ...Qh2+!)} 28. Rxf4 Qxf4 $11 {[%csl Ge5][%cal Rf4h2][%mdl 4096] Endgame. KQB-KQB} 29. Bf1 (29. Kg1 {looks sharper.} Kg8 30. b3 b6 31. Qf2) 29... g5 {[%mdl 1024] Black has compensation.} 30. Qg2 Kg7 31. b3 h6 32. Be2 b6 33. Bf1 Kg6 34. Be2 h5 35. Bd1 a5 36. Be2 Kh6 37. Bd1 Kg6 38. Be2 Kh6 39. Bd1 Bd6 40. Be2 Kg6 41. Bd1 (41. Kg1 {feels hotter.} Qc1+ 42. Qf1 Qe3+ 43. Kh1) 41... h4 42. Be2 Kh6 ({Black should play} 42... Kf6 $15) 43. Bd1 Kg7 44. Be2 Be5 45. Bd1 Qe3 46. Qg4 Bf6 {Weighted Error Value: White=0.15 (very precise) /Black=0.14 (very precise) .  Mistake:       	White=1     	Black=2      Inaccurate:     	White=6     	Black=4      OK:         	White=7     	Black=14     Best:        	White=4     	---} 1/2-1/2

[Event "45th FIDE Womens Olympiad 2024"]
[Site "Budapest"]
[Date "2024.09.15"]
[Round "5.124"]
[White "Sibajeva, Marija"]
[Black "Caicedo Rios, Layla Yasmira"]
[Result "1-0"]
[ECO "B90"]
[WhiteElo "2007"]
[BlackElo "1803"]
[Annotator "TA"]
[PlyCount "47"]
[EventDate "2024.09.05"]
[EventType "team-tourn"]
[EventCountry "HUN"]
[SourceTitle "playchess.com"]
[Source "ChessBase"]
[SourceQuality "1"]
[WhiteTeam "Lithuania"]
[BlackTeam "Panama"]
[WhiteTeamCountry "LTU"]
[BlackTeamCountry "PAN"]
[TimeControl "40/5400+30:1800+30"]

{[%evp 12,47,9,6,13,1,32,0,0,3,0,0,0,6,23,32,24,17,26,14,30,18,34,18,27,28,63,52,70,35,134,135,170,168,177,159,272,210]} 1. e4 c5 2. Nf3 d6 3. d4 cxd4 4. Nxd4 Nf6 5. Nc3 a6 6. h3 e5 7. Nb3 Be6 8. f4 Nc6 9. Be2 exf4 {The position is equal.} 10. Bxf4 d5 11. exd5 Nxd5 12. Nxd5 Qxd5 13. Qxd5 Bxd5 14. O-O Be7 15. Rad1 Be6 16. Bf3 O-O 17. Bxc6 bxc6 18. Bd6 Rfe8 19. Bxe7 Rxe7 20. Rd6 Rc7 {[#]} ({Black should play} 20... Rb7 $14) 21. Nc5 $1 $16 {White is more active.} Bc4 22. Rf4 Bxa2 {[#]} 23. b3 $1 Re8 (23... Re7 $16 {might work better.} 24. Rd1 (24. Rxc6 Bb1 $16) 24... Re5) 24. Rf1 {Weighted Error Value: White=0.05 (flawless) /Black=0.31.  Mistake:       	---       	Black=2      Inaccurate:     	White=2     	Black=2      OK:         	White=7     	Black=4      Best:        	White=1     	---        Strong:       	White=2     	---} 1-0

[Event "45th FIDE Womens Olympiad 2024"]
[Site "Budapest"]
[Date "2024.09.15"]
[Round "5.125"]
[White "Samaganova, Aleksandra"]
[Black "De Blecourt, Sandra"]
[Result "0-1"]
[ECO "A36"]
[WhiteElo "1948"]
[BlackElo "2065"]
[Annotator "TA"]
[PlyCount "94"]
[EventDate "2024.09.05"]
[EventType "team-tourn"]
[EventCountry "HUN"]
[SourceTitle "playchess.com"]
[Source "ChessBase"]
[SourceQuality "1"]
[WhiteTeam "Kyrgyzstan"]
[BlackTeam "Denmark"]
[WhiteTeamCountry "KGZ"]
[BlackTeamCountry "DEN"]
[TimeControl "40/5400+30:1800+30"]

{[%evp 22,94,10,-12,-15,-25,-23,-22,-16,-41,-38,-35,-17,-53,-40,-79,-12,-39,-42,-46,-41,-50,-53,-52,-32,-58,-41,-42,-35,-67,-62,-58,-57,-63,-43,-67,-58,-88,-78,-91,-95,-91,-77,-118,-84,-200,-97,-192,-191,-191,-145,-618,-601,-585,-527,-929,-920,-918,-894,-879,-796,-767,-757,-1358,-823,-831,-800,-29985,-29986,-29990,-29991,-29992,-29991,-29991,-29991]} 1. c4 c5 2. Nc3 Nc6 3. g3 g6 4. Bg2 Bg7 5. e4 d6 6. d3 e6 7. Nge2 Nge7 8. O-O O-O 9. a3 b6 10. Rb1 Bb7 11. b4 Qd7 12. Be3 Nd4 13. f4 f5 14. Bf2 Nec6 {The position is equal.} 15. h3 Nxe2+ 16. Nxe2 e5 17. Qd2 Rae8 18. Kh2 Nd8 (18... Nd4 $17 19. Nxd4 cxd4 20. fxe5 dxe5) 19. fxe5 Bxe5 20. Be3 fxe4 21. Rxf8+ Rxf8 22. dxe4 Qe6 23. Qd3 Re8 24. Re1 Nf7 25. Bd2 g5 26. Nc3 Bd4 27. Nd5 {[#] Black must now prevent Nc7.} Ne5 28. Qe2 {Hoping for Nc7.} Rf8 (28... Qg6 {simplifies} 29. bxc5 bxc5 30. Kh1 h6) 29. Rf1 {Repels Rf2} (29. Bxg5 $2 Rf2 30. Qh5 Nf3+ (30... Nxc4 31. Ne7+ Kf8 32. bxc5 $11) 31. Qxf3 Rxf3 32. Bxf3 Bxd5 33. cxd5 Qf7 $19) 29... Rxf1 30. Qxf1 h6 31. Qe2 Kg7 32. a4 Qf7 {Black is more active.} 33. Be1 {[#] Wards off Qf2} (33. a5 $17 {might work better.}) 33... Bc8 (33... g4 $1 $19 {[%cal Rg4h3] is more deadly. Strongly threatening ...gxh3.} 34. Nf4 gxh3 (34... Qxc4 $2 35. Qxc4 Nxc4 36. hxg4 $17) 35. Bxh3 Qxc4 (35... Nxc4 $2 {perishes.} 36. Be6 $18)) 34. b5 (34. Kh1 $17) 34... g4 $19 {Threatens to win with ...gxh3.} 35. h4 Nf3+ $40 {[%mdl 128] White is in trouble.} 36. Bxf3 $4 {[%mdl 8192] This costs White the game.} (36. Kh1 $17) 36... gxf3 37. Qf1 f2 38. Bd2 Qf3 39. Nf4 Qxe4 40. Nh5+ Kg6 41. Nf4+ Kh7 42. Nd5 Bf5 {( -> ...Qd3). A strong pair of Bishops.} 43. Be3 Qf3 ({Worse is} 43... Bxe3 44. Nf6+ Kg7 45. Nxe4 Bxe4 46. g4 $11) 44. Bxd4 cxd4 {Black mates.} 45. Nf4 d3 46. c5 dxc5 47. Ng2 Qe2 {Weighted Error Value: White=0.72/Black=0.24 (precise) .  Loses game:     	White=1     	---        Mistake:       	White=2     	Black=2      Inaccurate:     	White=7     	---        OK:         	White=5     	Black=10     Best:        	White=2     	---} 0-1

[Event "45th FIDE Womens Olympiad 2024"]
[Site "Budapest"]
[Date "2024.09.15"]
[Round "5.126"]
[White "Kakulidis, Ellen"]
[Black "Zhanybekova, Begimay"]
[Result "1/2-1/2"]
[ECO "B07"]
[WhiteElo "2048"]
[BlackElo "1784"]
[Annotator "TA"]
[PlyCount "78"]
[EventDate "2024.09.05"]
[EventType "team-tourn"]
[EventCountry "HUN"]
[SourceTitle "playchess.com"]
[Source "ChessBase"]
[SourceQuality "1"]
[WhiteTeam "Denmark"]
[BlackTeam "Kyrgyzstan"]
[WhiteTeamCountry "DEN"]
[BlackTeamCountry "KGZ"]
[TimeControl "40/5400+30:1800+30"]

{[%evp 20,78,14,8,31,16,18,16,29,12,18,0,0,0,18,13,10,15,21,22,40,43,48,48,47,26,103,56,58,70,66,69,57,12,33,0,1,0,2,0,0,0,0,0,0,0,0,0,0,0,0,-20,-13,-13,-13,-13,0,-20,0,-30,0]} 1. d4 Nf6 2. g3 g6 3. Bg2 Bg7 4. e4 d6 5. Nc3 O-O 6. Nge2 e5 7. h3 Nc6 8. Be3 exd4 9. Nxd4 Bd7 10. O-O Re8 11. Re1 a5 12. a4 Nxd4 13. Bxd4 Bc6 {The position is equal.} 14. Qd3 Nd7 15. Bxg7 Kxg7 16. f4 f6 17. b3 Nc5 18. Qd4 Ne6 19. Qd2 Qb8 20. Rad1 Qa7+ 21. Kh2 Rad8 22. Nd5 Qc5 (22... Bxd5 $1 $11 23. exd5 Nc5) 23. Re2 (23. c4 $16) 23... Bxd5 $14 24. exd5 (24. Qxd5 Qxd5 25. Rxd5 Nc5 $16) 24... Nf8 25. Rde1 Kf7 26. Qd3 Qb4 {Black is weak on the light squares} 27. Rxe8 (27. Bf3 {looks sharper.} f5 28. Re3 Qc5 29. Kg2) 27... Rxe8 28. Rxe8 Kxe8 {[%mdl 4096] Endgame. KQB-KQN} 29. Qe2+ Kf7 30. Bf3 Qd4 31. Bg2 b6 32. Qe1 f5 33. Qe2 Qf6 34. Bf3 Nd7 35. Kg2 Nc5 36. Kf2 Qd4+ 37. Kg2 Qf6 38. Kf2 Qd4+ 39. Kg2 Qf6 {Weighted Error Value: White=0.10 (very precise) /Black=0.09 (flawless) .  Mistake:       	White=1     	Black=1      Inaccurate:     	White=2     	Black=1      OK:         	White=8     	Black=14} 1/2-1/2